[Event "*** Titled Tuesday Blitz"]
[Site "Chess.com"]
[Date "2020.01.07"]
[Round "4"]
[White "Bykov_Egor"]
[Black "Hadza_3"]
[Result "0-1"]
[WhiteElo "2608"]
[BlackElo "2400"]
[TimeControl "180+2"]
[EndTime "13:54:59 PST"]
[Termination "Hadza_3 won by resignation"]

1. Nf3 {[%clk 0:03:01.9]} 1... Nf6 {[%clk 0:03:00.7]} 2. b3 {[%clk 0:03:03.1]}
2... g6 {[%clk 0:03:02.6]} 3. Bb2 {[%clk 0:03:04.3]} 3... Bg7 {[%clk 0:03:03.6]}
4. g3 {[%clk 0:03:05.4]} 4... O-O {[%clk 0:03:04]} 5. Bg2 {[%clk 0:03:06.7]}
5... d6 {[%clk 0:03:04.8]} 6. O-O {[%clk 0:03:08]} 6... c6 {[%clk 0:03:06.3]} 7.
d4 {[%clk 0:03:07.8]} 7... Qa5 {[%clk 0:03:07.3]} 8. Re1 {[%clk 0:03:03.1]} 8...
Qh5 {[%clk 0:03:07.8]} 9. e4 {[%clk 0:03:04.1]} 9... Bg4 {[%clk 0:03:08.1]} 10.
e5 {[%clk 0:02:52.1]} 10... Nfd7 {[%clk 0:02:30.1]} 11. exd6 {[%clk 0:02:48.6]}
11... exd6 {[%clk 0:02:32]} 12. Nbd2 {[%clk 0:02:49.4]} 12... d5 {[%clk
0:02:21.6]} 13. c3 {[%clk 0:02:32.9]} 13... Nf6 {[%clk 0:02:13.5]} 14. Re5
{[%clk 0:02:19.6]} 14... Bxf3 {[%clk 0:01:28.3]} 15. Nxf3 {[%clk 0:02:13.7]}
15... Qg4 {[%clk 0:01:29.1]} 16. Ba3 {[%clk 0:02:05.2]} 16... Re8 {[%clk
0:01:16.4]} 17. Qd3 {[%clk 0:01:59.1]} 17... Na6 {[%clk 0:00:56]} 18. h3 {[%clk
0:01:58.3]} 18... Qd7 {[%clk 0:00:56.2]} 19. Rae1 {[%clk 0:01:44.2]} 19... Nc7
{[%clk 0:00:52.7]} 20. Re7 {[%clk 0:01:42.9]} 20... Rxe7 {[%clk 0:00:53.9]} 21.
Rxe7 {[%clk 0:01:44.7]} 21... Qd8 {[%clk 0:00:54.2]} 22. Ng5 {[%clk 0:00:56.3]}
22... Nb5 {[%clk 0:00:52.3]} 23. Nxf7 {[%clk 0:00:48.6]} 23... Qf8 {[%clk
0:00:39.4]} 24. Qe3 {[%clk 0:00:21.4]} 24... Nxa3 {[%clk 0:00:35.7]} 25. Qe6
{[%clk 0:00:22.3]} 25... Nb5 {[%clk 0:00:14.8]} 26. Nh6+ {[%clk 0:00:13]} 26...
Kh8 {[%clk 0:00:15.9]} 27. Nf7+ {[%clk 0:00:13.2]} 27... Kg8 {[%clk 0:00:17.1]}
28. Ne5+ {[%clk 0:00:09.4]} 28... Kh8 {[%clk 0:00:17.6]} 29. g4 {[%clk
0:00:10.8]} 29... Nxc3 {[%clk 0:00:11.4]} 30. g5 {[%clk 0:00:11.3]} 30... Nfe4
{[%clk 0:00:12.7]} 31. Nf7+ {[%clk 0:00:11.7]} 31... Kg8 {[%clk 0:00:13.8]} 32.
f3 {[%clk 0:00:08.3]} 32... Ne2+ {[%clk 0:00:08.5]} 33. Kf1 {[%clk 0:00:05.8]}
33... Nf4 {[%clk 0:00:10.4]} 34. fxe4 {[%clk 0:00:06.6]} 34... Nxe6 {[%clk
0:00:10.9]} 0-1

[Event "*** Titled Tuesday Blitz"]
[Site "Chess.com"]
[Date "2020.01.07"]
[Round "4"]
[White "novocane"]
[Black "dawtonlms"]
[Result "0-1"]
[WhiteElo "2182"]
[BlackElo "2345"]
[TimeControl "180+2"]
[EndTime "13:55:04 PST"]
[Termination "dawtonlms won by resignation"]

1. d4 {[%clk 0:03:01.8]} 1... Nf6 {[%clk 0:02:59.7]} 2. c4 {[%clk 0:03:02.3]}
2... g6 {[%clk 0:03:01.2]} 3. Nc3 {[%clk 0:03:03]} 3... Bg7 {[%clk 0:03:02.7]}
4. e4 {[%clk 0:03:03.3]} 4... O-O {[%clk 0:03:04]} 5. f3 {[%clk 0:03:04.2]} 5...
d6 {[%clk 0:03:04.7]} 6. Bg5 {[%clk 0:03:03.8]} 6... c5 {[%clk 0:03:01.3]} 7. d5
{[%clk 0:03:04.6]} 7... Nbd7 {[%clk 0:02:49.7]} 8. Nh3 {[%clk 0:03:04.5]} 8...
a6 {[%clk 0:02:42.9]} 9. Be2 {[%clk 0:02:59.4]} 9... h6 {[%clk 0:02:39.9]} 10.
Be3 {[%clk 0:02:58.8]} 10... Rb8 {[%clk 0:02:36.9]} 11. a4 {[%clk 0:02:59.1]}
11... Ne5 {[%clk 0:02:20.9]} 12. Nf2 {[%clk 0:02:59.1]} 12... e6 {[%clk
0:02:21]} 13. O-O {[%clk 0:02:46.8]} 13... exd5 {[%clk 0:02:22]} 14. cxd5 {[%clk
0:02:47.9]} 14... h5 {[%clk 0:02:19.2]} 15. h3 {[%clk 0:02:45.7]} 15... Qa5
{[%clk 0:02:11.1]} 16. Ra3 {[%clk 0:02:35.9]} 16... Re8 {[%clk 0:02:11.7]} 17.
f4 {[%clk 0:02:07.5]} 17... Ned7 {[%clk 0:02:11.9]} 18. f5 {[%clk 0:02:08.7]}
18... gxf5 {[%clk 0:01:53.9]} 19. Bxh5 {[%clk 0:02:06.1]} 19... fxe4 {[%clk
0:01:47.5]} 20. Bg4 {[%clk 0:01:44.9]} 20... Qb4 {[%clk 0:01:17.5]} 21. Rb3
{[%clk 0:01:33.8]} 21... Qa5 {[%clk 0:01:10.7]} 22. Bf5 {[%clk 0:01:25.5]} 22...
b5 {[%clk 0:01:06.5]} 23. axb5 {[%clk 0:01:17]} 23... axb5 {[%clk 0:01:08.4]}
24. Ra3 {[%clk 0:00:24.6]} 24... Qc7 {[%clk 0:01:03.1]} 25. Ra1 {[%clk
0:00:18.4]} 25... Nf8 {[%clk 0:00:57.2]} 26. Bxc8 {[%clk 0:00:19]} 26... Qxc8
{[%clk 0:00:56.4]} 27. Bg5 {[%clk 0:00:19.7]} 27... N8h7 {[%clk 0:00:55.2]} 28.
Bxf6 {[%clk 0:00:19.4]} 28... Nxf6 {[%clk 0:00:57.1]} 29. Qe2 {[%clk 0:00:17.8]}
29... Qf5 {[%clk 0:00:31]} 30. Ng4 {[%clk 0:00:17.7]} 30... Qg5 {[%clk
0:00:30.2]} 31. Nxf6+ {[%clk 0:00:17.2]} 31... Bxf6 {[%clk 0:00:31.4]} 32. Nxe4
{[%clk 0:00:17.1]} 32... Bd4+ {[%clk 0:00:29.9]} 33. Kh1 {[%clk 0:00:18.2]}
33... Qg6 {[%clk 0:00:27.5]} 34. Rae1 {[%clk 0:00:16.2]} 34... Re5 {[%clk
0:00:26.2]} 35. Qf3 {[%clk 0:00:16.7]} 35... Rbe8 {[%clk 0:00:26.4]} 36. Nxd6
{[%clk 0:00:17.8]} 36... Rxe1 {[%clk 0:00:26.2]} 37. Nxe8 {[%clk 0:00:19.1]}
37... Rxf1+ {[%clk 0:00:26]} 38. Qxf1 {[%clk 0:00:19.4]} 38... Bxb2 {[%clk
0:00:26.9]} 39. Qxb5 {[%clk 0:00:20]} 39... Qb1+ {[%clk 0:00:26.9]} 0-1

[Event "*** Titled Tuesday Blitz"]
[Site "Chess.com"]
[Date "2020.01.07"]
[Round "4"]
[White "platy3"]
[Black "attack2mateU"]
[Result "1-0"]
[WhiteElo "2904"]
[BlackElo "2683"]
[TimeControl "180+2"]
[EndTime "13:55:12 PST"]
[Termination "platy3 won by resignation"]

1. e4 {[%clk 0:03:01.9]} 1... c5 {[%clk 0:03:00.6]} 2. Nf3 {[%clk 0:03:01.9]}
2... d6 {[%clk 0:03:01.4]} 3. d4 {[%clk 0:03:03]} 3... cxd4 {[%clk 0:03:02.8]}
4. Nxd4 {[%clk 0:03:04.7]} 4... Nf6 {[%clk 0:03:04]} 5. Nc3 {[%clk 0:03:06.3]}
5... a6 {[%clk 0:03:05.4]} 6. a4 {[%clk 0:03:07.8]} 6... Nc6 {[%clk 0:03:04.8]}
7. a5 {[%clk 0:03:03.2]} 7... e6 {[%clk 0:03:05.3]} 8. Nxc6 {[%clk 0:03:00.7]}
8... bxc6 {[%clk 0:03:07.2]} 9. Bd3 {[%clk 0:03:02.1]} 9... d5 {[%clk
0:03:06.1]} 10. O-O {[%clk 0:03:02.1]} 10... Be7 {[%clk 0:03:06.8]} 11. Qe2
{[%clk 0:03:02]} 11... O-O {[%clk 0:03:05.8]} 12. Bd2 {[%clk 0:03:00.5]} 12...
Nd7 {[%clk 0:03:05.4]} 13. Na4 {[%clk 0:02:49.5]} 13... Bf6 {[%clk 0:01:54.7]}
14. f4 {[%clk 0:02:40.2]} 14... g6 {[%clk 0:01:44.3]} 15. c4 {[%clk 0:02:33.8]}
15... dxc4 {[%clk 0:01:20.6]} 16. Bxc4 {[%clk 0:02:33.1]} 16... c5 {[%clk
0:01:21.3]} 17. e5 {[%clk 0:02:23.2]} 17... Be7 {[%clk 0:01:18.7]} 18. Nc3
{[%clk 0:02:21.6]} 18... Bb7 {[%clk 0:01:18.8]} 19. Rfd1 {[%clk 0:02:16.3]}
19... Nb8 {[%clk 0:00:50.2]} 20. Ne4 {[%clk 0:01:40.6]} 20... Qd4+ {[%clk
0:00:49.9]} 21. Nf2 {[%clk 0:01:37.3]} 21... Bd5 {[%clk 0:00:51]} 22. b3 {[%clk
0:01:34]} 22... Bxc4 {[%clk 0:00:33.4]} 23. bxc4 {[%clk 0:01:35.9]} 23... Qd7
{[%clk 0:00:20.8]} 24. Be3 {[%clk 0:01:34.6]} 24... Qc6 {[%clk 0:00:21.5]} 25.
Qd3 {[%clk 0:01:16.5]} 25... Rd8 {[%clk 0:00:20]} 26. Qxd8+ {[%clk 0:00:55.1]}
26... Bxd8 {[%clk 0:00:21.9]} 27. Rxd8+ {[%clk 0:00:56.4]} 27... Kg7 {[%clk
0:00:23.4]} 28. Rad1 {[%clk 0:00:58.1]} 28... h5 {[%clk 0:00:20.8]} 29. f5
{[%clk 0:00:56.3]} 29... exf5 {[%clk 0:00:14.7]} 30. Bg5 {[%clk 0:00:57.5]}
30... Nd7 {[%clk 0:00:10.9]} 31. R8xd7 {[%clk 0:00:55.2]} 31... Re8 {[%clk
0:00:05.3]} 32. Bf6+ {[%clk 0:00:55.5]} 32... Kh6 {[%clk 0:00:06.2]} 33. Rxf7
{[%clk 0:00:49.8]} 33... g5 {[%clk 0:00:03.6]} 34. h4 {[%clk 0:00:46.3]} 34...
gxh4 {[%clk 0:00:02.9]} 35. Rdd7 {[%clk 0:00:45.1]} 35... f4 {[%clk 0:00:03.3]}
36. Bxh4 {[%clk 0:00:39.3]} 36... Kg6 {[%clk 0:00:03.2]} 37. Rf6+ {[%clk
0:00:35.8]} 37... Qxf6 {[%clk 0:00:04.1]} 38. Bxf6 {[%clk 0:00:36.1]} 38... Kf5
{[%clk 0:00:05.1]} 39. Rd6 {[%clk 0:00:35.4]} 39... Rg8 {[%clk 0:00:05]} 40. Kf1
{[%clk 0:00:36.6]} 40... Rb8 {[%clk 0:00:04.7]} 41. Rb6 {[%clk 0:00:37]} 41...
Ra8 {[%clk 0:00:04.6]} 42. Nd3 {[%clk 0:00:35.2]} 42... Ke4 {[%clk 0:00:04.7]}
43. Nxc5+ {[%clk 0:00:36.2]} 43... Ke3 {[%clk 0:00:06.2]} 44. Rb3+ {[%clk
0:00:35]} 44... Kd4 {[%clk 0:00:06.9]} 45. Nd7 {[%clk 0:00:35.6]} 45... Kxc4
{[%clk 0:00:07.7]} 46. Rb8 {[%clk 0:00:35.6]} 46... Ra7 {[%clk 0:00:07.5]} 47.
e6 {[%clk 0:00:36.5]} 1-0

[Event "*** Titled Tuesday Blitz"]
[Site "Chess.com"]
[Date "2020.01.07"]
[Round "4"]
[White "ketster"]
[Black "ChEsper99"]
[Result "1-0"]
[WhiteElo "2305"]
[BlackElo "1996"]
[TimeControl "180+2"]
[EndTime "13:55:12 PST"]
[Termination "ketster won by resignation"]

1. d4 {[%clk 0:02:57.4]} 1... Nf6 {[%clk 0:03:00.9]} 2. c4 {[%clk 0:02:58.1]}
2... g6 {[%clk 0:03:01.9]} 3. Nc3 {[%clk 0:02:58.9]} 3... Bg7 {[%clk 0:03:03.5]}
4. e4 {[%clk 0:02:59.4]} 4... d6 {[%clk 0:03:05]} 5. Nf3 {[%clk 0:02:58]} 5...
O-O {[%clk 0:03:06.2]} 6. h3 {[%clk 0:02:59.1]} 6... e5 {[%clk 0:03:00.1]} 7. d5
{[%clk 0:02:58.5]} 7... a5 {[%clk 0:03:00]} 8. Be3 {[%clk 0:02:54.3]} 8... Na6
{[%clk 0:02:59.8]} 9. g4 {[%clk 0:02:54.9]} 9... Ne8 {[%clk 0:02:55.1]} 10. Rg1
{[%clk 0:02:51.1]} 10... Kh8 {[%clk 0:02:54.5]} 11. Nd2 {[%clk 0:02:46.4]} 11...
f5 {[%clk 0:02:54]} 12. gxf5 {[%clk 0:02:42.3]} 12... gxf5 {[%clk 0:02:54.8]}
13. Bg5 {[%clk 0:02:41.6]} 13... Nf6 {[%clk 0:02:47.6]} 14. Qc2 {[%clk
0:02:30.2]} 14... f4 {[%clk 0:02:10]} 15. f3 {[%clk 0:02:18.9]} 15... Qe8 {[%clk
0:02:07.4]} 16. O-O-O {[%clk 0:02:03.4]} 16... Nh5 {[%clk 0:02:07.8]} 17. Bh4
{[%clk 0:01:58]} 17... Bf6 {[%clk 0:02:06]} 18. Bxf6+ {[%clk 0:01:57]} 18...
Rxf6 {[%clk 0:02:05.1]} 19. Nb5 {[%clk 0:01:49.7]} 19... Bd7 {[%clk 0:02:02.6]}
20. Kb1 {[%clk 0:01:35]} 20... Ng3 {[%clk 0:01:55.3]} 21. Nb3 {[%clk 0:01:30.8]}
21... Nxf1 {[%clk 0:01:26.8]} 22. Rdxf1 {[%clk 0:01:28.7]} 22... Bxb5 {[%clk
0:01:27.9]} 23. cxb5 {[%clk 0:01:25.4]} 23... Qxb5 {[%clk 0:01:29.8]} 24. Rc1
{[%clk 0:01:08.8]} 24... a4 {[%clk 0:01:24.8]} 25. Nd2 {[%clk 0:01:06.8]} 25...
a3 {[%clk 0:01:26.1]} 26. b3 {[%clk 0:00:54.1]} 26... Rg8 {[%clk 0:01:21.7]} 27.
Nc4 {[%clk 0:00:52]} 27... Qc5 {[%clk 0:01:10.6]} 28. Rg4 {[%clk 0:00:34.5]}
28... Rxg4 {[%clk 0:00:58.2]} 29. hxg4 {[%clk 0:00:36.4]} 29... Rh6 {[%clk
0:00:57.5]} 30. Qd2 {[%clk 0:00:29.5]} 30... Rh3 {[%clk 0:00:39.8]} 31. Nxe5
{[%clk 0:00:24.3]} 31... Qb5 {[%clk 0:00:14.3]} 32. Nf7+ {[%clk 0:00:22.4]}
32... Kg7 {[%clk 0:00:15]} 33. Ng5 {[%clk 0:00:22.3]} 33... Rg3 {[%clk
0:00:11.2]} 34. Qd4+ {[%clk 0:00:11.9]} 34... Kg6 {[%clk 0:00:08.8]} 35. Ne6
{[%clk 0:00:11.7]} 35... Qd7 {[%clk 0:00:03.8]} 36. Nf8+ {[%clk 0:00:10.9]} 1-0

[Event "*** Titled Tuesday Blitz"]
[Site "Chess.com"]
[Date "2020.01.07"]
[Round "4"]
[White "Saitama_Hero"]
[Black "Babbelbox"]
[Result "0-1"]
[WhiteElo "2295"]
[BlackElo "2511"]
[TimeControl "180+2"]
[EndTime "13:55:13 PST"]
[Termination "Babbelbox won by resignation"]

1. d4 {[%clk 0:03:01.9]} 1... Nf6 {[%clk 0:03:00.2]} 2. c4 {[%clk 0:03:03.1]}
2... c5 {[%clk 0:03:01.7]} 3. d5 {[%clk 0:03:03.3]} 3... b5 {[%clk 0:03:03.2]}
4. cxb5 {[%clk 0:03:05.2]} 4... a6 {[%clk 0:03:03.8]} 5. b6 {[%clk 0:03:06.6]}
5... Qxb6 {[%clk 0:03:04.2]} 6. Nc3 {[%clk 0:03:07.3]} 6... d6 {[%clk
0:03:05.1]} 7. Nf3 {[%clk 0:03:08.1]} 7... g6 {[%clk 0:03:02.8]} 8. Nd2 {[%clk
0:03:08.8]} 8... Bg7 {[%clk 0:03:02.4]} 9. e4 {[%clk 0:03:08.8]} 9... Nbd7
{[%clk 0:03:02.6]} 10. Be2 {[%clk 0:03:09.1]} 10... O-O {[%clk 0:02:35.9]} 11.
Nc4 {[%clk 0:03:10]} 11... Qc7 {[%clk 0:02:34.8]} 12. Bf4 {[%clk 0:03:10.1]}
12... Nb6 {[%clk 0:02:22.8]} 13. Ne3 {[%clk 0:03:11.2]} 13... Rb8 {[%clk
0:02:12.1]} 14. O-O {[%clk 0:03:11.4]} 14... Nfd7 {[%clk 0:02:10.3]} 15. Bg5
{[%clk 0:03:11.4]} 15... Re8 {[%clk 0:02:02.8]} 16. Qd2 {[%clk 0:03:08.9]} 16...
Bd4 {[%clk 0:01:45.1]} 17. Kh1 {[%clk 0:03:02.3]} 17... Nf6 {[%clk 0:01:32.6]}
18. f3 {[%clk 0:02:52.7]} 18... Bd7 {[%clk 0:01:16.8]} 19. Nc2 {[%clk
0:02:52.2]} 19... Bxc3 {[%clk 0:01:14.6]} 20. bxc3 {[%clk 0:02:54.1]} 20... Bb5
{[%clk 0:01:11.5]} 21. Ne3 {[%clk 0:02:08.7]} 21... Bxe2 {[%clk 0:01:05.5]} 22.
Qxe2 {[%clk 0:02:10.6]} 22... Na4 {[%clk 0:01:06.8]} 23. Bxf6 {[%clk 0:01:41.5]}
23... exf6 {[%clk 0:01:07.2]} 24. Ng4 {[%clk 0:01:41.9]} 24... Qe7 {[%clk
0:00:47.3]} 25. Qc4 {[%clk 0:01:41.9]} 25... Nb2 {[%clk 0:00:23.5]} 26. Qxa6
{[%clk 0:01:42]} 26... c4 {[%clk 0:00:24.3]} 27. Rab1 {[%clk 0:01:29.9]} 27...
h5 {[%clk 0:00:16.5]} 28. Ne3 {[%clk 0:01:26.1]} 28... Qc7 {[%clk 0:00:17.4]}
29. Qc6 {[%clk 0:01:23]} 29... Qe7 {[%clk 0:00:05.7]} 30. Nxc4 {[%clk
0:01:15.6]} 30... Rbc8 {[%clk 0:00:05.8]} 31. Qxd6 {[%clk 0:01:14.8]} 31... Nxc4
{[%clk 0:00:06.2]} 32. Qxe7 {[%clk 0:01:13.9]} 32... Rxe7 {[%clk 0:00:08.1]} 33.
Rfc1 {[%clk 0:01:07.6]} 33... Ra7 {[%clk 0:00:08.4]} 34. Rd1 {[%clk 0:00:40.8]}
34... Rxa2 {[%clk 0:00:07.7]} 35. d6 {[%clk 0:00:41.6]} 35... Rd8 {[%clk
0:00:09.1]} 36. Rb4 {[%clk 0:00:34.9]} 36... Nxd6 {[%clk 0:00:08.2]} 37. Rbd4
{[%clk 0:00:36]} 37... Kf8 {[%clk 0:00:05.7]} 38. c4 {[%clk 0:00:34]} 38... Ke7
{[%clk 0:00:07.1]} 39. c5 {[%clk 0:00:33.9]} 39... Nb7 {[%clk 0:00:07.8]} 40.
Rxd8 {[%clk 0:00:26.6]} 40... Nxd8 {[%clk 0:00:09.7]} 41. Rc1 {[%clk 0:00:26.2]}
41... Nc6 {[%clk 0:00:10.4]} 42. h3 {[%clk 0:00:25.6]} 42... Ra5 {[%clk
0:00:11.4]} 0-1

[Event "*** Titled Tuesday Blitz"]
[Site "Chess.com"]
[Date "2020.01.07"]
[Round "4"]
[White "ExploringChess"]
[Black "David_Paravyan"]
[Result "1-0"]
[WhiteElo "2589"]
[BlackElo "2849"]
[TimeControl "180+2"]
[EndTime "13:55:17 PST"]
[Termination "ExploringChess won on time"]

1. e4 {[%clk 0:03:01.9]} 1... c5 {[%clk 0:02:59.8]} 2. Nf3 {[%clk 0:03:02.2]}
2... d6 {[%clk 0:03:01.4]} 3. d4 {[%clk 0:03:01]} 3... cxd4 {[%clk 0:03:03.3]}
4. Nxd4 {[%clk 0:03:00.2]} 4... Nf6 {[%clk 0:03:04.8]} 5. Nc3 {[%clk 0:02:59.8]}
5... a6 {[%clk 0:03:06.4]} 6. Bg5 {[%clk 0:02:58.7]} 6... Nbd7 {[%clk 0:03:01]}
7. Qe2 {[%clk 0:02:57.8]} 7... Qa5 {[%clk 0:03:00.3]} 8. Bd2 {[%clk 0:02:54.6]}
8... Qb6 {[%clk 0:03:00.2]} 9. Nb3 {[%clk 0:02:52.7]} 9... e6 {[%clk 0:02:46.2]}
10. O-O-O {[%clk 0:02:53]} 10... Be7 {[%clk 0:02:47.8]} 11. g4 {[%clk
0:02:48.3]} 11... h6 {[%clk 0:02:29.6]} 12. f4 {[%clk 0:02:43]} 12... Qc7 {[%clk
0:02:30.5]} 13. h4 {[%clk 0:02:39]} 13... b5 {[%clk 0:02:29.6]} 14. Bg2 {[%clk
0:02:36.8]} 14... Bb7 {[%clk 0:02:19.6]} 15. g5 {[%clk 0:02:32.8]} 15... Nh7
{[%clk 0:01:43.5]} 16. a3 {[%clk 0:02:30.8]} 16... Nc5 {[%clk 0:01:31.8]} 17.
Nxc5 {[%clk 0:02:25]} 17... dxc5 {[%clk 0:01:33.7]} 18. e5 {[%clk 0:02:23.7]}
18... O-O-O {[%clk 0:01:30.8]} 19. Ne4 {[%clk 0:02:19.9]} 19... f5 {[%clk
0:01:15.9]} 20. gxf6 {[%clk 0:02:15.2]} 20... gxf6 {[%clk 0:01:16.7]} 21. exf6
{[%clk 0:01:55.5]} 21... Bxf6 {[%clk 0:01:08.4]} 22. Nxf6 {[%clk 0:01:52.5]}
22... Nxf6 {[%clk 0:01:09.6]} 23. Qxe6+ {[%clk 0:01:50]} 23... Nd7 {[%clk
0:01:11.1]} 24. Bxb7+ {[%clk 0:01:36.8]} 24... Kxb7 {[%clk 0:01:02]} 25. Bc3
{[%clk 0:01:37.2]} 25... Rhe8 {[%clk 0:00:48.9]} 26. Qxh6 {[%clk 0:01:34.4]}
26... a5 {[%clk 0:00:40.5]} 27. Qg5 {[%clk 0:01:25.8]} 27... b4 {[%clk
0:00:38.8]} 28. Be5 {[%clk 0:01:26.3]} 28... Qc6 {[%clk 0:00:34.6]} 29. h5
{[%clk 0:01:16.6]} 29... c4 {[%clk 0:00:25.7]} 30. Bd4 {[%clk 0:01:07.7]} 30...
Ka6 {[%clk 0:00:13.1]} 31. h6 {[%clk 0:00:59.9]} 31... bxa3 {[%clk 0:00:12.2]}
32. bxa3 {[%clk 0:00:57.4]} 32... Rb8 {[%clk 0:00:13.8]} 33. h7 {[%clk
0:00:42.2]} 33... c3 {[%clk 0:00:15.1]} 34. Rh6 {[%clk 0:00:39]} 34... Re6
{[%clk 0:00:16.1]} 35. Rxe6 {[%clk 0:00:35.3]} 35... Qxe6 {[%clk 0:00:18]} 36.
Rh1 {[%clk 0:00:33]} 36... Qe2 {[%clk 0:00:03.3]} 37. Qg6+ {[%clk 0:00:18.1]}
37... Nb6 {[%clk 0:00:03.7]} 38. h8=Q {[%clk 0:00:13.1]} 38... Rxh8 {[%clk
0:00:04.6]} 39. Bxh8 {[%clk 0:00:14.1]} 39... Qf3 {[%clk 0:00:03.2]} 40. Qd3+
{[%clk 0:00:14.2]} 40... Qxd3 {[%clk 0:00:03.2]} 41. cxd3 {[%clk 0:00:16.1]} 1-0

[Event "*** Titled Tuesday Blitz"]
[Site "Chess.com"]
[Date "2020.01.07"]
[Round "4"]
[White "vova-79"]
[Black "BobanBogosavljevic"]
[Result "0-1"]
[WhiteElo "2538"]
[BlackElo "2743"]
[TimeControl "180+2"]
[EndTime "13:55:19 PST"]
[Termination "BobanBogosavljevic won on time"]

1. d4 {[%clk 0:03:01.9]} 1... d5 {[%clk 0:03:01]} 2. c4 {[%clk 0:03:02]} 2... c6
{[%clk 0:03:02.4]} 3. Nc3 {[%clk 0:03:02.2]} 3... Nf6 {[%clk 0:03:03.8]} 4. cxd5
{[%clk 0:03:02.9]} 4... cxd5 {[%clk 0:03:04.6]} 5. f3 {[%clk 0:03:03.3]} 5... g6
{[%clk 0:02:44.6]} 6. e4 {[%clk 0:02:59.6]} 6... dxe4 {[%clk 0:02:45.5]} 7. fxe4
{[%clk 0:02:58.4]} 7... Bg7 {[%clk 0:02:45.4]} 8. Bb5+ {[%clk 0:02:06]} 8... Bd7
{[%clk 0:02:45.5]} 9. e5 {[%clk 0:02:01.6]} 9... Nd5 {[%clk 0:02:44.3]} 10. e6
{[%clk 0:01:52.4]} 10... fxe6 {[%clk 0:02:44.8]} 11. Bxd7+ {[%clk 0:01:46.9]}
11... Qxd7 {[%clk 0:02:44.9]} 12. Nf3 {[%clk 0:01:48.1]} 12... Nc6 {[%clk
0:02:43.1]} 13. O-O {[%clk 0:01:47.3]} 13... O-O {[%clk 0:02:44.2]} 14. Ne4
{[%clk 0:01:46.1]} 14... b6 {[%clk 0:02:29.6]} 15. Re1 {[%clk 0:01:32]} 15...
Rxf3 {[%clk 0:01:59]} 16. gxf3 {[%clk 0:01:31.5]} 16... Nxd4 {[%clk 0:01:58.8]}
17. Be3 {[%clk 0:01:16.6]} 17... Nxe3 {[%clk 0:01:46.9]} 18. Rxe3 {[%clk
0:01:16]} 18... Rf8 {[%clk 0:01:48.5]} 19. Kg2 {[%clk 0:01:13.3]} 19... Qb5
{[%clk 0:01:42.8]} 20. Rb1 {[%clk 0:01:09.5]} 20... Qd5 {[%clk 0:01:38.1]} 21.
b3 {[%clk 0:00:59.3]} 21... Nf5 {[%clk 0:01:37.2]} 22. Rd3 {[%clk 0:00:55]}
22... Nh4+ {[%clk 0:01:37.5]} 23. Kg3 {[%clk 0:00:48.9]} 23... Qh5 {[%clk
0:01:33.4]} 24. f4 {[%clk 0:00:32.3]} 24... Qf5 {[%clk 0:01:27.6]} 25. Kxh4
{[%clk 0:00:20.2]} 25... Qxe4 {[%clk 0:01:28.4]} 26. Rf3 {[%clk 0:00:16.6]}
26... Be5 {[%clk 0:01:09.1]} 27. Kh3 {[%clk 0:00:10.9]} 27... Bxf4 {[%clk
0:00:58.9]} 28. Qd3 {[%clk 0:00:08.2]} 28... Qe5 {[%clk 0:00:49.2]} 29. Rh1
{[%clk 0:00:04.4]} 29... Qh5+ {[%clk 0:00:47.6]} 30. Kg2 {[%clk 0:00:04.4]}
30... Qg4+ {[%clk 0:00:48]} 31. Kf1 {[%clk 0:00:05]} 31... e5 {[%clk 0:00:43.2]}
32. h3 {[%clk 0:00:05]} 32... Qc8 {[%clk 0:00:40.3]} 33. Qc4+ {[%clk 0:00:04.5]}
33... Qxc4+ {[%clk 0:00:39.6]} 34. bxc4 {[%clk 0:00:06.4]} 34... e4 {[%clk
0:00:36.8]} 35. Rf2 {[%clk 0:00:05.8]} 35... e3 {[%clk 0:00:33.9]} 36. Rf3
{[%clk 0:00:05.5]} 36... e5 {[%clk 0:00:34.6]} 37. Ke2 {[%clk 0:00:06]} 37...
Rc8 {[%clk 0:00:34]} 38. Rc1 {[%clk 0:00:05.3]} 38... Rc5 {[%clk 0:00:34.1]} 39.
Rc2 {[%clk 0:00:04.9]} 39... Kg7 {[%clk 0:00:31.4]} 40. Rf1 {[%clk 0:00:04.4]}
40... Kf6 {[%clk 0:00:32]} 41. Kd3 {[%clk 0:00:03.9]} 41... Kf5 {[%clk
0:00:32.6]} 42. Re2 {[%clk 0:00:03.4]} 42... Ra5 {[%clk 0:00:23.5]} 0-1